[Event "1st Sakatam Open 2024"]
[Site "Guwahati"]
[Date "2024.03.26"]
[Round "6.6"]
[White "Kishan Kumar"]
[Black "Mishra, Neeraj-Kumar"]
[Result "1-0"]
[ECO "E12"]
[WhiteElo "1867"]
[BlackElo "2150"]
[Annotator "RC"]
[PlyCount "85"]
[EventDate "2024.03.24"]
[EventType "swiss"]
[EventCountry "IND"]
[SourceTitle "playchess.com"]
[Source "ChessBase"]
[SourceQuality "1"]
[TimeControl "5400+30"]

1. d4 {[%emt 0:03:41]} Nf6 {[%emt 0:00:18]} 2. Nf3 {[%emt 0:00:02]} e6 {[%emt 0:01:10]} 3. c4 {[%emt 0:00:23]} b6 {[%emt 0:00:32]} 4. a3 {[%emt 0:00:08]} Ba6 {[%emt 0:00:26]} 5. Qc2 {[%emt 0:00:21]} Bb7 {[%emt 0:00:53]} 6. Nc3 {[%emt 0:00:13]} c5 {[%emt 0:02:31]} 7. Bg5 {[%emt 0:02:33]} cxd4 {[%emt 0:02:04]} 8. Nxd4 {[%emt 0:00:16]} Nc6 {[%emt 0:00:51]} 9. e3 {[%emt 0:01:40]} Be7 {[%emt 0:00:40]} 10. Rd1 {[%emt 0:04:45]} a6 {[%emt 0:00:58]} 11. Nf3 {[%emt 0:07:19]} Rc8 {[%emt 0:02:27]} 12. Bd3 {[%emt 0:09:13]} h6 {[%emt 0:04:57]} 13. Bf4 {[%emt 0:07:55]} Na5 {[%emt 0:03:14]} 14. Qe2 {[%emt 0:00:51]} Nh5 {[%emt 0:05:21]} 15. Ne5 {[%emt 0:09:04]} Nxf4 {[%emt 0:01:15]} 16. exf4 {[%emt 0:00:06]} d6 {[%emt 0:00:50]} 17. Qh5 {[%emt 0:16:46]} dxe5 {[%emt 0:00:47]} 18. Bg6 {[%emt 0:01:12]} Qxd1+ {[%emt 0:01:30]} 19. Nxd1 {[%emt 0:01:57]} fxg6 {[%emt 0:00:14]} 20. Qxg6+ {[%emt 0:00:08]} Kd7 {[%emt 0:01:20]} 21. f5 {[%emt 0:03:25]} exf5 {[%emt 0:00:45]} 22. Qxb6 {[%emt 0:00:50]} Bd8 {[%emt 0:00:39]} 23. Qg6 {[%emt 0:00:32]} Bf6 {[%emt 0:00:18]} 24. Qf7+ {[%emt 0:07:31]} Kd8 {[%emt 0:00:24]} 25. Ne3 {[%emt 0:01:44]} Rc7 {[%emt 0:05:55]} 26. Qe6 {[%emt 0:00:18]} Nc6 {[%emt 0:00:09]} 27. O-O {[%emt 0:05:34]} Nd4 {[%emt 0:01:00]} 28. Rd1 {[%emt 0:00:56]} Rd7 {[%emt 0:01:10]} 29. Qb6+ {[%emt 0:00:34]} Ke7 {[%emt 0:01:45]} 30. Nxf5+ {[%emt 0:00:54]} Kf7 {[%emt 0:00:24]} 31. Nd6+ {[%emt 0:01:35]} Kg6 {[%emt 0:00:11]} 32. c5 {[%emt 0:02:46]} Kh7 {[%emt 0:05:07]} 33. Nxb7 {[%emt 0:01:49]} Nf3+ {[%emt 0:03:20]} 34. gxf3 {[%emt 0:00:13]} Rxd1+ {[%emt 0:00:01]} 35. Kg2 {[%emt 0:00:03]} Rf8 {[%emt 0:00:57]} 36. c6 {[%emt 0:02:54]} e4 {[%emt 0:00:07]} 37. Qe3 {[%emt 0:02:41]} exf3+ {[%emt 0:01:52]} 38. Qxf3 {[%emt 0:00:04]} Rc1 {[%emt 0:01:03]} 39. b4 {[%emt 0:00:32]} Rc3 {[%emt 0:01:15]} 40. Qf5+ {[%emt 0:02:21]} Kg8 {[%emt 0:00:14]} 41. Nc5 {[%emt 0:00:29]} Rf7 {[%emt 0:03:24]} 42. Qd5 {[%emt 0:01:14]} Kf8 {[%emt 0:02:11]} 43. Qxf7+ {[%emt 0:00:29]} 1-0

[Event "1st Sakatam Open 2024"]
[Site "Guwahati"]
[Date "2024.03.26"]
[Round "6.7"]
[White "Robi Singh Jeron"]
[Black "Chandreyee, Hajra"]
[Result "0-1"]
[ECO "A03"]
[WhiteElo "1732"]
[BlackElo "1912"]
[Annotator "RC"]
[PlyCount "104"]
[EventDate "2024.03.24"]
[EventType "swiss"]
[EventCountry "IND"]
[SourceTitle "playchess.com"]
[Source "ChessBase"]
[SourceQuality "1"]
[TimeControl "5400+30"]

1. d4 {[%emt 0:00:30]} d5 {[%emt 0:04:04]} 2. e3 {[%emt 1:31:00]} Nf6 {[%emt 0:01:29]} 3. f4 {[%emt 0:00:00]} c5 {[%emt 0:01:45]} 4. Nf3 {[%emt 0:00:00]} Nc6 {[%emt 0:02:48]} 5. c3 {[%emt 0:00:00]} Bf5 {[%emt 0:01:26]} 6. Be2 {[%emt 0:00:00]} e6 {[%emt 0:00:28]} 7. O-O {[%emt 0:00:00]} Ne4 {[%emt 0:02:48]} 8. Nbd2 {[%emt 0:00:00]} cxd4 {[%emt 0:01:09]} 9. cxd4 {[%emt 0:00:00]} Be7 {[%emt 0:02:08]} 10. Nxe4 {[%emt 0:00:00]} Bxe4 {[%emt 0:00:26]} 11. Bd3 {[%emt 0:00:00]} O-O {[%emt 0:01:08]} 12. a3 {[%emt 0:00:00]} a6 {[%emt 0:02:08]} 13. Ne5 {[%emt 0:00:00]} Rc8 {[%emt 0:04:45]} 14. Bxe4 {[%emt 0:00:00]} dxe4 {[%emt 0:00:42]} 15. Bd2 {[%emt 0:00:00]} f6 {[%emt 0:04:21]} 16. Nxc6 {[%emt 0:00:00]} Rxc6 {[%emt 0:00:14]} 17. Qb3 {[%emt 0:00:00]} Rb6 {[%emt 0:01:50]} 18. Qa2 {[%emt 0:00:00]} Qd5 {[%emt 0:02:48]} 19. Rfc1 {[%emt 0:00:00]} Qb5 {[%emt 0:06:39]} 20. Bc3 {[%emt 0:00:00]} Kh8 {[%emt 0:03:32]} 21. Re1 {[%emt 0:00:00]} Rc8 {[%emt 0:03:33]} 22. Rad1 {[%emt 0:00:00]} Qd5 {[%emt 0:00:57]} 23. Qxd5 {[%emt 0:00:00]} exd5 {[%emt 0:00:01]} 24. Rc1 {[%emt 0:00:00]} Rbc6 {[%emt 0:00:49]} 25. Bd2 {[%emt 0:00:00]} Kg8 {[%emt 0:01:00]} 26. Rxc6 {[%emt 0:00:00]} Rxc6 {[%emt 0:00:25]} 27. Rc1 {[%emt 0:00:00]} Rxc1+ {[%emt 0:00:49]} 28. Bxc1 {[%emt 0:00:00]} Kf7 {[%emt 0:00:31]} 29. g4 {[%emt 0:00:00]} Ke6 {[%emt 0:01:03]} 30. b3 {[%emt 0:00:00]} Kd7 {[%emt 0:02:22]} 31. Kf1 {[%emt 0:00:00]} Kc6 {[%emt 0:00:25]} 32. Ke2 {[%emt 0:00:00]} Kb5 {[%emt 0:00:25]} 33. Kd1 {[%emt 0:00:00]} a5 {[%emt 0:01:04]} 34. Kc2 {[%emt 0:00:00]} a4 {[%emt 0:00:21]} 35. Bb2 {[%emt 0:00:00]} g6 {[%emt 0:02:17]} 36. h3 {[%emt 0:00:00]} h6 {[%emt 0:03:15]} 37. Bc1 {[%emt 0:00:00]} f5 {[%emt 0:02:04]} 38. Kb2 {[%emt 0:00:00]} fxg4 {[%emt 0:00:55]} 39. hxg4 {[%emt 0:00:00]} h5 {[%emt 0:00:27]} 40. gxh5 {[%emt 0:00:00]} gxh5 {[%emt 0:00:06]} 41. Bd2 {[%emt 0:00:00]} h4 {[%emt 0:00:25]} 42. Be1 {[%emt 0:20:00]} h3 43. Bg3 {[%emt 0:00:00]} Bh4 {[%emt 0:00:44]} 44. Bh2 {[%emt 0:00:00]} Bf2 {[%emt 0:00:32]} 45. Kc3 {[%emt 0:00:00]} Bxe3 {[%emt 0:00:12]} 46. bxa4+ {[%emt 0:00:00]} Kxa4 {[%emt 0:00:08]} 47. f5 {[%emt 0:00:00]} Bg5 {[%emt 0:00:08]} 48. Be5 {[%emt 0:00:00]} Kxa3 {[%emt 0:00:14]} 49. Bd6+ {[%emt 0:00:00]} Ka4 {[%emt 0:00:05]} 50. Be5 {[%emt 0:00:00]} b5 {[%emt 0:00:05]} 51. Bg3 {[%emt 0:00:00]} b4+ {[%emt 0:00:04]} 52. Kb2 {[%emt 0:00:00]} Bf6 {[%emt 0:00:02]} 0-1

[Event "1st Sakatam Open 2024"]
[Site "Guwahati"]
[Date "2024.03.26"]
[Round "6.8"]
[White "Tanmay Rajbongshi"]
[Black "Debankur Banerjee"]
[Result "1-0"]
[ECO "B13"]
[WhiteElo "1909"]
[BlackElo "1718"]
[Annotator "RC"]
[PlyCount "105"]
[EventDate "2024.03.24"]
[EventType "swiss"]
[EventCountry "IND"]
[SourceTitle "playchess.com"]
[Source "ChessBase"]
[SourceQuality "1"]
[TimeControl "5400+30"]

1. e4 {[%emt 0:00:02]} c6 {[%emt 0:00:28]} 2. d4 {[%emt 0:00:06]} d5 {[%emt 0:00:04]} 3. exd5 {[%emt 0:00:08]} cxd5 {[%emt 0:00:05]} 4. Bd3 {[%emt 0:00:13]} Nc6 {[%emt 0:00:05]} 5. c3 {[%emt 0:00:05]} Nf6 {[%emt 0:00:02]} 6. Bf4 {[%emt 0:00:09]} g6 {[%emt 0:00:05]} 7. Nf3 {[%emt 0:00:09]} Bg7 {[%emt 0:00:04]} 8. h3 {[%emt 0:00:17]} O-O {[%emt 0:00:07]} 9. O-O {[%emt 0:00:05]} Nh5 {[%emt 0:00:05]} 10. Bh2 {[%emt 0:00:21]} Bh6 {[%emt 0:00:12]} 11. Nbd2 {[%emt 0:03:30]} Nf4 {[%emt 0:00:16]} 12. Bc2 {[%emt 0:00:17]} Be6 {[%emt 0:04:57]} 13. Re1 {[%emt 0:01:21]} Kh8 {[%emt 0:08:26]} 14. Nf1 {[%emt 0:03:49]} Qc8 {[%emt 0:16:27]} 15. Kh1 {[%emt 0:08:00]} Bf5 {[%emt 0:18:08]} 16. Bxf5 {[%emt 0:01:39]} Qxf5 {[%emt 0:01:07]} 17. Ne3 {[%emt 0:00:21]} Qh5 {[%emt 0:05:35]} 18. Ng4 {[%emt 0:00:25]} Ne6 {[%emt 0:01:41]} 19. Nxh6 {[%emt 0:00:08]} Qxh6 {[%emt 0:00:04]} 20. Ne5 {[%emt 0:01:43]} Kg8 {[%emt 0:03:40]} 21. Qg4 {[%emt 0:01:51]} Ncd8 {[%emt 0:09:15]} 22. Qf3 {[%emt 0:02:10]} Qd2 {[%emt 0:01:42]} 23. Re2 {[%emt 0:01:16]} Qg5 {[%emt 0:01:39]} 24. Rae1 {[%emt 0:02:11]} Rc8 {[%emt 0:07:33]} 25. Re3 {[%emt 0:04:28]} Qf5 {[%emt 0:01:45]} 26. Qe2 {[%emt 0:01:31]} Nf4 {[%emt 0:03:52]} 27. Bxf4 {[%emt 0:00:53]} Qxf4 {[%emt 0:00:02]} 28. Nd7 {[%emt 0:00:21]} Ne6 {[%emt 0:01:36]} 29. Nxf8 {[%emt 0:00:24]} Rxf8 {[%emt 0:00:04]} 30. Rf3 {[%emt 0:00:18]} Qd6 {[%emt 0:00:17]} 31. Re3 {[%emt 0:00:52]} Nf4 {[%emt 0:00:30]} 32. Qf3 {[%emt 0:01:23]} e6 {[%emt 0:00:05]} 33. Re5 {[%emt 0:00:46]} f6 {[%emt 0:00:40]} 34. R5e3 {[%emt 0:00:30]} Re8 {[%emt 0:00:26]} 35. Qg4 {[%emt 0:04:29]} Kf7 {[%emt 0:00:07]} 36. g3 {[%emt 0:01:03]} Nh5 {[%emt 0:00:40]} 37. Qe2 {[%emt 0:01:05]} Ng7 {[%emt 0:00:55]} 38. Qd3 {[%emt 0:01:23]} Nf5 {[%emt 0:01:32]} 39. R3e2 {[%emt 0:00:15]} Qb6 {[%emt 0:02:09]} 40. b3 {[%emt 0:01:35]} h5 {[%emt 0:02:02]} 41. Kg1 {[%emt 0:00:53]} Qd6 {[%emt 0:01:51]} 42. Rd1 {[%emt 0:02:27]} Rd8 {[%emt 0:00:40]} 43. Kf1 {[%emt 0:02:36]} g5 {[%emt 0:03:56]} 44. Rde1 {[%emt 0:02:19]} Re8 {[%emt 0:00:11]} 45. Qxf5 {[%emt 0:00:28]} exf5 {[%emt 0:00:25]} 46. Rxe8 {[%emt 0:00:07]} h4 {[%emt 0:02:18]} 47. R1e7+ {[%emt 0:01:00]} Kg6 {[%emt 0:00:01]} 48. Rg8+ {[%emt 0:00:27]} Kh6 {[%emt 0:00:01]} 49. Rgg7 {[%emt 0:00:27]} f4 {[%emt 0:00:57]} 50. g4 {[%emt 0:00:02]} f5 {[%emt 0:01:59]} 51. Rh7+ {[%emt 0:00:32]} Kg6 {[%emt 0:00:02]} 52. Reg7+ {[%emt 0:00:07]} Kf6 {[%emt 0:00:05]} 53. Rh6+ {[%emt 0:00:04]} 1-0

[Event "1st Sakatam Open 2024"]
[Site "Guwahati"]
[Date "2024.03.26"]
[Round "7.1"]
[White "Subhayan Kundu"]
[Black "Kaustuv, Kundu"]
[Result "1/2-1/2"]
[ECO "B56"]
[WhiteElo "2353"]
[BlackElo "2388"]
[Annotator "RC"]
[PlyCount "20"]
[EventDate "2024.03.24"]
[EventType "swiss"]
[EventCountry "IND"]
[SourceTitle "playchess.com"]
[Source "ChessBase"]
[SourceQuality "1"]
[TimeControl "5400+30"]

1. e4 {[%emt 0:05:55]} c5 {[%emt 0:02:58]} 2. Nf3 {[%emt 0:00:25]} d6 {[%emt 0:00:06]} 3. d4 {[%emt 0:00:07]} cxd4 {[%emt 0:00:06]} 4. Nxd4 {[%emt 0:00:07]} Nf6 {[%emt 0:00:04]} 5. Nc3 {[%emt 0:00:05]} Nc6 {[%emt 0:00:04]} 6. Be3 {[%emt 0:01:00]} Ng4 {[%emt 0:00:07]} 7. Bc1 {[%emt 0:00:05]} Nf6 {[%emt 0:00:05]} 8. Be3 {[%emt 0:00:08]} Ng4 {[%emt 0:00:06]} 9. Bc1 {[%emt 0:00:06]} Nf6 {[%emt 0:00:05]} 10. Be3 {[%emt 0:00:06]} Ng4 {[%emt 0:00:04]} 1/2-1/2

[Event "1st Sakatam Open 2024"]
[Site "Guwahati"]
[Date "2024.03.26"]
[Round "7.2"]
[White "Kumar, Gaurav"]
[Black "Mrinmoy Rajkhowa"]
[Result "1/2-1/2"]
[ECO "A15"]
[WhiteElo "2049"]
[BlackElo "1901"]
[Annotator "RC"]
[PlyCount "66"]
[EventDate "2024.03.24"]
[EventType "swiss"]
[EventCountry "IND"]
[SourceTitle "playchess.com"]
[Source "ChessBase"]
[SourceQuality "1"]
[TimeControl "5400+30"]

1. Nf3 {[%emt 0:00:05]} Nf6 {[%emt 0:00:07]} 2. c4 {[%emt 0:00:14]} g6 {[%emt 0:00:11]} 3. b4 {[%emt 0:00:08]} Bg7 {[%emt 0:00:12]} 4. Bb2 {[%emt 0:00:26]} O-O {[%emt 0:00:13]} 5. g3 {[%emt 0:00:32]} d6 {[%emt 0:02:27]} 6. Bg2 {[%emt 0:00:12]} e5 {[%emt 0:02:14]} 7. d3 {[%emt 0:00:13]} a5 {[%emt 0:01:49]} 8. b5 {[%emt 0:00:31]} Nbd7 {[%emt 0:03:40]} 9. O-O {[%emt 0:00:29]} Re8 {[%emt 0:00:15]} 10. a4 {[%emt 0:04:19]} Qe7 {[%emt 0:06:59]} 11. e3 {[%emt 0:09:34]} e4 {[%emt 0:02:46]} 12. dxe4 {[%emt 0:03:19]} Nxe4 {[%emt 0:00:09]} 13. Bxg7 {[%emt 0:00:15]} Kxg7 {[%emt 0:00:02]} 14. Nd4 {[%emt 0:02:46]} Ndc5 {[%emt 0:01:51]} 15. Nd2 {[%emt 0:00:32]} h5 {[%emt 0:12:55]} 16. Nxe4 {[%emt 0:01:23]} Nxe4 {[%emt 0:00:06]} 17. h4 {[%emt 0:24:32]} Bd7 {[%emt 0:09:04]} 18. Qc2 {[%emt 0:50:00]} Nc5 {[%emt 0:06:28]} 19. Rad1 {[%emt 0:00:00]} Qf6 {[%emt 0:04:12]} 20. e4 {[%emt 0:00:00]} Rad8 {[%emt 0:05:18]} 21. f4 {[%emt 0:00:00]} Bg4 {[%emt 0:02:21]} 22. Rd2 {[%emt 0:00:00]} Qe7 {[%emt 0:05:05]} 23. Re1 {[%emt 0:00:00]} Qf6 {[%emt 0:03:19]} 24. Kh2 {[%emt 0:00:00]} Kh7 {[%emt 0:03:18]} 25. Bf3 {[%emt 0:00:00]} Ne6 {[%emt 0:04:59]} 26. Nxe6 {[%emt 0:00:00]} Qxe6 {[%emt 0:02:23]} 27. Bg2 {[%emt 0:00:00]} Qf6 {[%emt 0:03:49]} 28. Rd3 {[%emt 0:00:00]} b6 {[%emt 0:01:18]} 29. Rde3 {[%emt 0:00:00]} Qd4 {[%emt 0:01:13]} 30. Rd3 {[%emt 0:00:00]} Qf6 {[%emt 0:00:08]} 31. Rde3 {[%emt 0:00:00]} Qd4 {[%emt 0:00:06]} 32. Rd3 {[%emt 0:00:53]} Qf6 {[%emt 0:00:05]} 33. Rde3 {[%emt 0:00:37]} Qd4 {[%emt 0:00:09]} 1/2-1/2

[Event "1st Sakatam Open 2024"]
[Site "Guwahati"]
[Date "2024.03.26"]
[Round "7.3"]
[White "Kishan Kumar"]
[Black "Arpan Das"]
[Result "1-0"]
[ECO "D02"]
[WhiteElo "1867"]
[BlackElo "2374"]
[Annotator "RC"]
[PlyCount "93"]
[EventDate "2024.03.24"]
[EventType "swiss"]
[EventCountry "IND"]
[SourceTitle "playchess.com"]
[Source "ChessBase"]
[SourceQuality "1"]
[TimeControl "5400+30"]

1. Nf3 {[%emt 0:00:03]} Nf6 {[%emt 0:10:14]} 2. d4 {[%emt 0:00:31]} g6 {[%emt 0:00:17]} 3. g3 {[%emt 0:00:22]} Bg7 {[%emt 0:00:04]} 4. Bg2 {[%emt 0:00:07]} c5 {[%emt 0:00:26]} 5. c3 {[%emt 0:01:22]} d5 {[%emt 0:00:23]} 6. O-O {[%emt 0:02:39]} O-O {[%emt 0:02:11]} 7. Bf4 {[%emt 0:02:12]} b6 {[%emt 0:01:08]} 8. Nbd2 {[%emt 0:03:13]} Bb7 {[%emt 0:00:18]} 9. Ne5 {[%emt 0:05:35]} Ne8 {[%emt 0:14:43]} 10. e4 {[%emt 0:09:48]} cxd4 {[%emt 0:00:14]} 11. cxd4 {[%emt 0:02:46]} Nf6 {[%emt 0:00:37]} 12. Re1 {[%emt 0:04:45]} dxe4 {[%emt 0:01:39]} 13. Nxe4 {[%emt 0:01:39]} Nxe4 {[%emt 0:00:06]} 14. Rxe4 {[%emt 0:02:11]} Na6 {[%emt 0:08:12]} 15. Re2 {[%emt 0:09:25]} Bxg2 {[%emt 0:01:27]} 16. Kxg2 {[%emt 0:00:03]} Qd5+ {[%emt 0:01:24]} 17. Kg1 {[%emt 0:00:14]} g5 {[%emt 0:21:55]} 18. Be3 {[%emt 0:04:33]} h6 {[%emt 0:09:56]} 19. Qa4 {[%emt 0:05:03]} Nc7 {[%emt 0:00:06]} 20. Rc1 {[%emt 0:07:23]} Ne6 {[%emt 0:00:50]} 21. Qc4 {[%emt 0:01:56]} Qxc4 {[%emt 0:07:02]} 22. Rxc4 {[%emt 0:00:27]} Rfc8 {[%emt 0:01:36]} 23. Rec2 {[%emt 0:03:07]} Rxc4 {[%emt 0:00:05]} 24. Rxc4 {[%emt 0:00:06]} Kf8 {[%emt 0:00:24]} 25. b3 {[%emt 0:04:09]} Ke8 {[%emt 0:02:43]} 26. Kf1 {[%emt 0:05:19]} f6 {[%emt 0:08:06]} 27. Nc6 {[%emt 0:02:46]} Kd7 {[%emt 0:00:54]} 28. Ke2 {[%emt 0:04:42]} f5 {[%emt 0:02:55]} 29. f4 {[%emt 0:03:25]} gxf4 {[%emt 0:00:09]} 30. Bxf4 {[%emt 0:03:40]} b5 {[%emt 0:01:23]} 31. Rc1 {[%emt 0:05:51]} Nxf4+ {[%emt 0:01:02]} 32. gxf4 {[%emt 0:00:17]} Kd6 {[%emt 0:00:04]} 33. Ne5 {[%emt 0:01:44]} Bxe5 {[%emt 0:01:33]} 34. dxe5+ {[%emt 0:01:28]} Kd5 {[%emt 0:00:08]} 35. Kf3 {[%emt 0:00:25]} Kd4 {[%emt 0:01:42]} 36. Rc7 {[%emt 0:00:24]} e6 {[%emt 0:00:16]} 37. Re7 {[%emt 0:00:46]} Kc3 {[%emt 0:00:09]} 38. Rxe6 {[%emt 0:00:06]} a5 {[%emt 0:00:01]} 39. Rf6 {[%emt 0:02:15]} Kb2 {[%emt 0:00:09]} 40. e6 {[%emt 0:00:06]} Kxa2 {[%emt 0:00:36]} 41. Rxf5 {[%emt 0:00:17]} Kxb3 {[%emt 0:01:02]} 42. e7 {[%emt 0:01:09]} Re8 {[%emt 0:00:02]} 43. Rxb5+ {[%emt 0:00:07]} Kc4 {[%emt 0:00:02]} 44. Re5 {[%emt 0:01:43]} a4 {[%emt 0:00:15]} 45. f5 {[%emt 0:00:18]} a3 {[%emt 0:00:02]} 46. f6 {[%emt 0:00:13]} a2 {[%emt 0:00:04]} 47. Ra5 {[%emt 0:00:21]} 1-0

[Event "1st Sakatam Open 2024"]
[Site "Guwahati"]
[Date "2024.03.26"]
[Round "7.4"]
[White "Arpan Das"]
[Black "Madkar, Atharva"]
[Result "1-0"]
[ECO "C96"]
[WhiteElo "2374"]
[BlackElo "1788"]
[Annotator "RC"]
[PlyCount "75"]
[EventDate "2024.03.24"]
[EventType "swiss"]
[EventCountry "IND"]
[SourceTitle "playchess.com"]
[Source "ChessBase"]
[SourceQuality "1"]
[TimeControl "5400+30"]

1. e4 {[%emt 0:05:32]} e5 {[%emt 0:00:09]} 2. Nf3 {[%emt 0:00:04]} Nc6 {[%emt 0:00:09]} 3. Bb5 {[%emt 0:00:05]} a6 {[%emt 0:00:12]} 4. Ba4 {[%emt 0:00:04]} Nf6 {[%emt 0:00:14]} 5. O-O {[%emt 0:00:14]} Be7 {[%emt 0:00:19]} 6. Re1 {[%emt 0:00:07]} b5 {[%emt 0:00:09]} 7. Bb3 {[%emt 0:00:05]} O-O {[%emt 0:00:15]} 8. a4 {[%emt 0:00:06]} Rb8 {[%emt 0:02:44]} 9. h3 {[%emt 0:01:26]} d6 {[%emt 0:01:22]} 10. c3 {[%emt 0:03:09]} Na5 {[%emt 0:02:21]} 11. Bc2 {[%emt 0:00:34]} c5 {[%emt 0:00:09]} 12. d4 {[%emt 0:02:11]} Qc7 {[%emt 0:00:54]} 13. d5 {[%emt 0:15:37]} c4 {[%emt 0:03:03]} 14. axb5 {[%emt 0:03:32]} axb5 {[%emt 0:00:12]} 15. Be3 {[%emt 0:01:26]} Bd7 {[%emt 0:08:15]} 16. Nbd2 {[%emt 0:00:53]} b4 {[%emt 0:09:30]} 17. Ba4 {[%emt 0:12:50]} bxc3 {[%emt 0:14:12]} 18. bxc3 {[%emt 0:02:20]} Rb7 {[%emt 0:00:25]} 19. Ra3 {[%emt 0:16:20]} Rfb8 {[%emt 0:05:05]} 20. Qe2 {[%emt 0:10:14]} Bd8 {[%emt 0:15:27]} 21. Qf1 {[%emt 0:03:08]} Rb2 {[%emt 0:12:33]} 22. Bd1 {[%emt 0:05:06]} Bb5 {[%emt 0:03:50]} 23. Be2 {[%emt 0:00:17]} Qb7 {[%emt 0:04:53]} 24. Rea1 {[%emt 0:17:10]} Nb3 {[%emt 0:01:22]} 25. Rb1 {[%emt 0:00:00]} Rxb1 {[%emt 0:09:24]} 26. Qxb1 {[%emt 0:00:00]} Qc7 {[%emt 0:00:14]} 27. Nxb3 {[%emt 0:00:00]} cxb3 {[%emt 0:00:10]} 28. Rxb3 {[%emt 0:00:00]} Nxe4 {[%emt 0:01:02]} 29. c4 {[%emt 0:00:00]} f5 {[%emt 0:03:10]} 30. cxb5 {[%emt 0:00:00]} Nc3 {[%emt 0:00:06]} 31. Qd3 {[%emt 0:00:00]} Nxe2+ {[%emt 0:00:30]} 32. Qxe2 {[%emt 0:00:00]} f4 {[%emt 0:00:07]} 33. Bxf4 {[%emt 0:00:00]} Qf7 {[%emt 0:00:46]} 34. Be3 {[%emt 0:00:18]} Qxd5 {[%emt 0:00:06]} 35. Rb1 {[%emt 0:00:05]} Bb6 {[%emt 0:02:58]} 36. Bxb6 {[%emt 0:00:28]} Rxb6 {[%emt 0:00:05]} 37. Nd2 {[%emt 0:00:03]} Qc5 {[%emt 0:00:50]} 38. Qc4+ {[%emt 0:00:06]} 1-0

[Event "1st Sakatam Open 2024"]
[Site "Guwahati"]
[Date "2024.03.26"]
[Round "7.5"]
[White "Balkishan, A.."]
[Black "Aahil Patra"]
[Result "1-0"]
[ECO "D53"]
[WhiteElo "2108"]
[BlackElo "1758"]
[Annotator "RC"]
[PlyCount "75"]
[EventDate "2024.03.24"]
[EventType "swiss"]
[EventCountry "IND"]
[SourceTitle "playchess.com"]
[Source "ChessBase"]
[SourceQuality "1"]
[TimeControl "5400+30"]

1. d4 {[%emt 0:01:07]} d5 {[%emt 0:00:40]} 2. c4 {[%emt 0:00:05]} e6 {[%emt 0:00:37]} 3. Nc3 {[%emt 0:00:04]} Nf6 {[%emt 0:00:13]} 4. Bg5 {[%emt 0:00:03]} Be7 {[%emt 0:00:13]} 5. e3 {[%emt 0:00:03]} O-O {[%emt 0:00:18]} 6. Nf3 {[%emt 0:00:02]} h6 {[%emt 0:00:42]} 7. Bf4 {[%emt 0:00:05]} Nbd7 {[%emt 0:02:09]} 8. h3 {[%emt 0:00:06]} c5 {[%emt 0:01:13]} 9. cxd5 {[%emt 0:00:19]} exd5 {[%emt 0:00:14]} 10. Bd3 {[%emt 0:00:25]} b6 {[%emt 0:00:55]} 11. O-O {[%emt 0:00:20]} Bb7 {[%emt 0:00:14]} 12. Rc1 {[%emt 0:00:38]} a6 {[%emt 0:01:45]} 13. dxc5 {[%emt 0:00:34]} bxc5 {[%emt 0:05:38]} 14. Na4 {[%emt 0:01:21]} Qa5 {[%emt 0:03:33]} 15. b4 {[%emt 0:02:08]} Qd8 {[%emt 0:01:36]} 16. Nxc5 {[%emt 0:00:14]} Nxc5 {[%emt 0:01:45]} 17. bxc5 {[%emt 0:00:10]} Rc8 {[%emt 0:00:27]} 18. Qb3 {[%emt 0:06:40]} Ba8 {[%emt 0:01:46]} 19. Bxa6 {[%emt 0:01:26]} Rxc5 {[%emt 0:00:28]} 20. Nd4 {[%emt 0:00:03]} Ne4 {[%emt 0:01:12]} 21. Qb2 {[%emt 0:02:28]} Rxc1 {[%emt 0:03:07]} 22. Qxc1 {[%emt 0:04:24]} Qa5 {[%emt 0:00:25]} 23. Bd3 {[%emt 0:02:04]} Qxa2 {[%emt 0:00:49]} 24. f3 {[%emt 0:01:08]} Nc5 {[%emt 0:02:55]} 25. Bb1 {[%emt 0:01:42]} Qc4 {[%emt 0:10:48]} 26. Nf5 {[%emt 0:01:10]} Bf6 {[%emt 0:01:11]} 27. Qa3 {[%emt 0:19:31]} Ne6 {[%emt 0:04:07]} 28. Bd6 {[%emt 0:06:15]} Rc8 {[%emt 0:03:16]} 29. Be7 {[%emt 0:06:52]} Qc3 {[%emt 0:02:24]} 30. Qa6 {[%emt 0:00:08]} Re8 {[%emt 0:04:56]} 31. Qa4 {[%emt 0:02:17]} Nc7 {[%emt 0:08:04]} 32. Bxf6 {[%emt 0:08:39]} Qxf6 {[%emt 0:00:26]} 33. Rc1 {[%emt 0:02:27]} Qb2 {[%emt 0:01:05]} 34. Rxc7 {[%emt 0:00:14]} Qxb1+ {[%emt 0:00:33]} 35. Kh2 {[%emt 0:00:02]} Rd8 {[%emt 0:07:10]} 36. Qg4 {[%emt 0:00:57]} Qb2 {[%emt 0:02:12]} 37. Nxh6+ {[%emt 0:00:10]} Kh7 {[%emt 0:00:27]} 38. Nxf7 {[%emt 0:00:16]} 1-0